[Event "EICC 2025"]
[Site "Eforie-Nord"]
[Date "2025.03.15"]
[Round "1.3"]
[White "Goroshkov, Maksym"]
[Black "Van Foreest, Jorden"]
[Result "0-1"]
[Annotator "TA"]
[ECO "A01"]
[WhiteElo "2350"]
[BlackElo "2676"]
[PlyCount "63"]
[EventDate "2025.03.14"]
[EventType "swiss"]
[EventCountry "ROU"]
[SourceTitle "playchess.com"]
[Source "ChessBase"]
[SourceQuality "1"]
[TimeControl "40/5400+30:1800+30"]

{[%evp 9,63,-63,-66,-49,-44,-77,-86,-116,-132,-108,-103,-197,-197,-198,-111,-136,-129,-247,-166,-180,-162,-456,-440,-454,-460,-452,-445,-474,-458,-557,-544,-661,-673,-695,-693,-675,-659,-786,-772,-872,-828,-866,-855,-1064,-1124,-1213,-1218,-1193,-1175,-2098,-2110,-1991,-1894,-1973,-1761,-1545]} 1. b3 {[%emt 0:00:07]} e5 {[%emt 0:01:02]} 2. Bb2 {[%emt 0:00:14]} Nc6 {[%emt 0:00:25]} 3. c4 {[%emt 0:00:54]} Nge7 {[%emt 0:01:32]} 4. e4 {[%emt 0:05:29]} Ng6 {[%emt 0:02:03]} 5. g3 {[%emt 0:02:17]} Bc5 {[%emt 0:01:04]} 6. Bg2 {[%emt 0:02:09] A01: Nimzowitsch-Larsen Opening.} d6 {[%emt 0:00:47]} 7. Ne2 $146 {[%emt 0:02:02]} (7. h3 f5 8. Ne2 f4 9. d4 Nxd4 10. Nxd4 fxg3 11. fxg3 Qg5 12. O-O Qxg3 13. Qf3 Bxd4+ 14. Bxd4 Qxf3 15. Rxf3 {1-0 Raines,D (1242)-Zyskowski,K (1375) SE-2020-0-00322}) 7... h5 {[%emt 0:06:02]} 8. Nbc3 {[%emt 0:10:09] Black is better.} h4 {[%emt 0:00:39] Black is more active.} 9. Nd5 {[%emt 0:04:14]} Bg4 {[%emt 0:11:56]} 10. h3 {[%emt 0:04:47] [#]} (10. Rg1 $17) 10... hxg3 $1 $19 {[%emt 0:00:42]} 11. fxg3 {[%emt 0:04:49] [#]} Bh5 {[%emt 0:02:01]} (11... Nh4 $1 $19 {[%cal Rh4g2]} 12. Kf1 Be6) 12. b4 {[%emt 0:11:43]} Bd4 {[%emt 0:02:57]} (12... Bxb4 13. Nxb4 Nxb4 14. O-O $15) 13. Bc3 {[%emt 0:00:31] [#]} (13. Qb3 $17) 13... Nf4 $1 {[%emt 0:09:17]} 14. Ndxf4 {[%emt 0:00:15]} (14. gxf4 $2 Qh4+) 14... exf4 {[%emt 0:00:04]} 15. Nxd4 {[%emt 0:03:40]} (15. Bxd4 $2 Nxd4 (15... Nxb4 $2 16. Qa4+ Qd7 17. Qxd7+ Kxd7 18. g4 $18) 16. Nxd4 Bxd1 $19) (15. Qb3 {might work better.} Bxe2 16. Kxe2) 15... Bxd1 {[%emt 0:00:32] Black is clearly winning.} 16. Rxd1 {[%emt 0:00:16]} Nxd4 {[%emt 0:05:48]} (16... fxg3 17. Nxc6 bxc6 18. Bxg7 $19) 17. Bxd4 {[%emt 0:00:05]} Qg5 {[%emt 0:00:44]} ({Less strong is} 17... fxg3 18. Bxg7 Rh7 19. Bc3 $19) 18. g4 {[%emt 0:01:18]} c5 {[%emt 0:00:05]} 19. Bf2 {[%emt 0:00:32]} cxb4 {[%emt 0:00:21]} 20. Bf3 {[%emt 0:00:43]} Rc8 {[%emt 0:00:22]} 21. d3 {[%emt 0:00:45]} b5 {[%emt 0:00:47]} 22. h4 {[%emt 0:00:13]} Qf6 {[%emt 0:00:06]} 23. cxb5 {[%emt 0:00:34]} Rc2 {[%emt 0:02:20]} 24. O-O {[%emt 0:00:57]} Rxa2 {[%emt 0:02:55]} 25. e5 {[%emt 0:00:19]} dxe5 {[%emt 0:00:05] Strongly threatening ...Rxh4.} ({Stronger than} 25... Qxe5 26. Rfe1 $11) 26. Bc6+ {[%emt 0:00:37]} Kf8 {[%emt 0:00:16]} 27. Bd5 {[%emt 0:00:49] [#]} Rxf2 $1 {[%emt 0:00:14]} 28. Rxf2 {[%emt 0:00:06]} Qxh4 {[%emt 0:00:26][%cal Oe5e4] ( -> ...e4!)} 29. Bf3 {[%emt 0:00:12]} Qg3+ {[%emt 0:00:31]} 30. Kf1 {[%emt 0:00:09]} Rh2 {[%emt 0:01:50]} 31. Rxh2 {[%emt 0:00:06]} Qxh2 {[%emt 0:00:15]} 32. Rc1 {[%emt 0:00:05] Weighted Error Value: White=1.14/Black=0.10 (very precise)   Mistake:       	White=3     	Black=1      Inaccurate:     	White=2     	Black=1      OK:         	White=2     	Black=7      Best:        	---       	Black=2      Strong:       	---       	Black=1} 0-1

[Event "EICC 2025"]
[Site "Eforie-Nord"]
[Date "2025.03.15"]
[Round "1.4"]
[White "Sargsyan, Shant"]
[Black "Skytte, Rasmus"]
[Result "1-0"]
[Annotator "TA"]
[ECO "D26"]
[WhiteElo "2666"]
[BlackElo "2343"]
[PlyCount "85"]
[EventDate "2025.03.14"]
[EventType "swiss"]
[EventCountry "ROU"]
[SourceTitle "playchess.com"]
[Source "ChessBase"]
[SourceQuality "1"]
[TimeControl "40/5400+30:1800+30"]

{[%evp 12,85,48,44,50,49,58,58,43,31,33,51,42,47,73,79,64,64,53,53,57,66,57,61,77,70,79,60,68,69,84,75,98,56,55,43,50,18,18,9,12,0,18,2,11,5,2,-6,0,-22,33,35,25,33,39,20,12,12,12,13,122,122,175,171,209,212,225,222,220,219,252,233,268,268,263,252]} 1. d4 {[%emt 0:01:09]} d5 {[%emt 0:00:07]} 2. c4 {[%emt 0:00:16]} dxc4 {[%emt 0:00:10]} 3. Nf3 {[%emt 0:00:41]} Nf6 {[%emt 0:00:11]} 4. e3 {[%emt 0:00:10]} e6 {[%emt 0:00:10]} 5. Bxc4 {[%emt 0:00:08]} Be7 {[%emt 0:00:14]} 6. O-O {[%emt 0:01:03]} O-O {[%emt 0:00:11]} 7. Qe2 {[%emt 0:00:35]} c5 {[%emt 0:00:14] D26: Queen's Gambit Accepted: 4 e3 e6 5 Bxc5 c5 sidelines.} 8. dxc5 {[%emt 0:01:15]} Bxc5 {[%emt 0:00:15]} 9. e4 {[%emt 0:00:07]} Nc6 {[%emt 0:00:16] White is slightly better.} 10. Nc3 {[%emt 0:00:33][%cal Bb1c3,Bc3a4,Ba4c5,Bc5d3][%mdl 32]} e5 {[%emt 0:03:30]} 11. Rd1 {[%emt 0:00:22]} Nd4 {[%emt 0:02:03]} 12. Nxd4 {[%emt 0:00:39]} (12. Nxe5 $2 Nxe2+ 13. Bxe2 Qe7 $19) 12... Bxd4 {[%emt 0:00:22]} 13. Be3 {[%emt 0:00:47]} Qb6 {[%emt 0:03:20]} 14. Na4 {[%emt 0:17:15]} Qc7 $146 {[%emt 0:04:23] ...Bxe3 would now be deadly.} ({Predecessor:} 14... Qb4 15. Bxd4 exd4 16. Rxd4 Be6 17. Rad1 Bxc4 18. Rxc4 Qe7 19. Rcd4 h6 20. e5 Nh7 {1-0 Peraza Balleste,O-Ziegert,A DESC D0738 email 2015}) 15. Rac1 {[%emt 0:04:41]} Bxe3 {[%emt 0:07:58]} 16. Qxe3 {[%emt 0:03:01]} Qe7 {[%emt 0:01:08]} 17. Qc5 {[%emt 0:08:49]} Qxc5 {[%emt 0:08:14]} 18. Nxc5 {[%emt 0:00:30]} b6 {[%emt 0:02:08]} 19. Nd3 {[%emt 0:00:49] White has more active pieces. The black rooks are passive.} Re8 {[%emt 0:06:21][%cal Bf8e8,Be8e7,Be7d7,Bd7d4][%mdl 32]} 20. f3 {[%emt 0:01:19]} Bb7 {[%emt 0:01:03]} 21. Kf2 {[%emt 0:04:21]} Kf8 {[%emt 0:04:11]} 22. Ke3 {[%emt 0:01:56]} Re7 {[%emt 0:03:10]} 23. Bb5 {[%emt 0:03:04]} Rd8 {[%emt 0:08:40]} 24. Rd2 {[%emt 0:05:22]} Ne8 {[%emt 0:03:49]} 25. a4 {[%emt 0:04:32]} f6 {[%emt 0:02:36]} 26. h4 {[%emt 0:02:07]} (26. Nb4 Rxd2 27. Kxd2 Rc7 28. Rc3) 26... Nc7 {[%emt 0:09:04]} (26... Rd4 27. Nf2 Rxd2 28. Kxd2 Nc7) 27. Bc4 {[%emt 0:00:10]} (27. Nb4 Rxd2 28. Kxd2 a5 29. Nd3) 27... Red7 {[%emt 0:05:42]} (27... Rd4 28. Ne1 Rxd2 29. Kxd2 Ne8) 28. b4 {[%emt 0:02:44]} Rd4 {[%emt 0:05:31]} 29. b5 {[%emt 0:04:07]} Ne8 {[%emt 0:00:49]} 30. Bb3 {[%emt 0:04:16][%cal Bc4b3,Bb3d1,Bd1f3][%mdl 32] [#]} f5 {[%emt 0:04:30]} 31. Rdd1 $14 {[%emt 0:06:40]} (31. exf5 e4 32. fxe4 Rxe4+ (32... Bxe4 33. Nf4 $15) 33. Kf2 Red4 $19) 31... fxe4 {[%emt 0:06:10]} 32. Nxe5 {[%emt 0:00:24]} Rxd1 {[%emt 0:00:50]} 33. Bxd1 {[%emt 0:00:31]} (33. Rxd1 {simplifies} Rxd1 34. Bxd1 Nd6 35. g4) 33... Nf6 {[%emt 0:00:59]} 34. fxe4 {[%emt 0:04:00]} Bxe4 {[%emt 0:01:19]} 35. g4 {[%emt 0:01:04] g5 would now be deadly.} Bg6 {[%emt 0:05:18]} (35... Bb7 $11 {remains equal.}) 36. Bf3 {[%emt 0:02:08]} Nd7 {[%emt 0:02:09]} (36... Nd5+ $16 37. Kf2 Bf7 38. Nxf7 Kxf7 39. Bxd5+ Rxd5) 37. Nxg6+ $18 {[%emt 0:06:09]} hxg6 {[%emt 0:00:08][%mdl 4096] Endgame KRB-KRN} 38. Rc7 {[%emt 0:00:06]} Nc5 {[%emt 0:00:59]} 39. Rxa7 {[%emt 0:06:02]} Rd3+ {[%emt 0:00:20]} 40. Kf4 {[%emt 0:03:10]} Rd4+ {[%emt 0:00:58] [#]} 41. Ke5 $1 {[%emt 0:31:45]} ({Weaker is} 41. Kg5 Nd7 $11) 41... Rxa4 {[%emt 0:05:43]} 42. Rxa4 {[%emt 0:00:00]} Nxa4 {[%emt 0:00:06]} 43. Kd6 {[%emt 0:00:00] Weighted Error Value: White=0.06 (flawless) /Black=0.15 (very precise)   Mistake:       	---       	Black=3      Inaccurate:     	White=2     	Black=1      OK:         	White=13    	Black=11     Best:        	White=6     	Black=4      Strong:       	White=1     	---} 1-0

[Event "EICC 2025"]
[Site "Eforie-Nord"]
[Date "2025.03.15"]
[Round "1.4"]
[White "Antal, Hunor-Zoltan"]
[Black "Nisipeanu, Liviu-Dieter"]
[Result "1/2-1/2"]
[Annotator "TA"]
[ECO "B12"]
[WhiteElo "2258"]
[BlackElo "2584"]
[PlyCount "87"]
[EventDate "2025.03.14"]
[EventType "swiss"]
[EventCountry "ROU"]
[SourceTitle "playchess.com"]
[Source "ChessBase"]
[SourceQuality "1"]
[TimeControl "40/5400+30:1800+30"]

{[%evp 10,87,30,23,39,27,36,25,55,35,38,0,0,0,0,0,18,12,18,-6,0,-24,-25,-42,-42,-62,-59,-58,-56,-59,-65,-62,-61,-55,-69,-66,-65,-55,-41,-24,-27,-26,-21,-24,-18,-32,0,-28,0,-20,-19,-175,-200,-263,6,-26,-30,-51,12,2,2,0,0,0,0,0,9,9,15,0,0,0,0,0,0,0,0,0,0,0]} 1. e4 {[%emt 0:00:21]} c6 {[%emt 0:00:07]} 2. d4 {[%emt 0:00:14]} d5 {[%emt 0:00:05]} 3. e5 {[%emt 0:00:05]} Bf5 {[%emt 0:00:06]} 4. Nf3 {[%emt 0:00:38]} e6 {[%emt 0:00:07]} 5. Be2 {[%emt 0:00:03]} Nd7 {[%emt 0:00:05]} 6. O-O {[%emt 0:00:07]} a5 {[%emt 0:00:03] B12: Caro-Kann: Advance Variation.} 7. c3 {[%emt 0:02:26]} a4 {[%emt 0:01:49]} 8. Be3 {[%emt 0:02:10]} Nh6 {[%emt 0:08:29] White has an edge.} 9. Nbd2 {[%emt 0:05:56]} Bg6 {[%emt 0:00:28]} 10. Ne1 $146 {[%emt 0:10:28]} (10. Bg5 Qc7 11. c4 dxc4 12. Nxc4 Nb6 13. Rc1 Be4 14. Nfd2 Bd5 15. Bf3 Nf5 16. Bxd5 Nxd5 {1-0 Backiel,H (1701)-Wojdak,J (2137) POL-ch Rapid U18 2023 (8)}) 10... Nf5 {[%emt 0:01:54]} 11. Bf4 {[%emt 0:00:15]} c5 {[%emt 0:09:53]} 12. Ndf3 {[%emt 0:02:35]} cxd4 {[%emt 0:07:53]} 13. cxd4 {[%emt 0:09:34]} Qb6 {[%emt 0:00:36][%cal Od7b8]} 14. Nc2 {[%emt 0:01:30]} Be7 {[%emt 0:05:59][%cal Oe8g8]} 15. Qd2 {[%emt 0:14:29]} O-O {[%emt 0:03:10][%cal Of8c8]} 16. Rfc1 {[%emt 0:17:06]} Nb8 {[%emt 0:09:43]} (16... Qxb2 $2 17. Rcb1 $18) 17. Ne3 {[%emt 0:14:01]} Nc6 {[%emt 0:01:12]} 18. Nxf5 {[%emt 0:00:57]} Bxf5 {[%emt 0:00:06]} 19. Be3 {[%emt 0:04:55]} a3 {[%emt 0:09:48]} 20. b3 {[%emt 0:01:56]} Rfc8 {[%emt 0:04:27]} 21. Bd3 {[%emt 0:01:25]} Bg4 {[%emt 0:01:24]} 22. Ne1 {[%emt 0:03:12]} Bb4 {[%emt 0:14:34]} (22... Nxd4 $2 23. Bxd4 Qd8 24. Rxc8 Rxc8 25. Rc1 $18) 23. Qc2 {[%emt 0:00:08]} g6 {[%emt 0:00:03]} (23... Nxd4 $2 24. Qxc8+ Rxc8 25. Rxc8+ Bf8 26. Nc2 $18) 24. f3 {[%emt 0:02:15]} Bf5 $36 {[%emt 0:06:51][%mdl 2048] Black is pushing.} (24... Nxd4 $2 25. Qf2 (25. fxg4 $2 Rxc2 26. Nxc2 Bc5 $19) (25. Qxc8+ Rxc8 26. Rxc8+ Kg7 $18) 25... Bxe1 (25... Rxc1 $2 26. Rxc1 Qd8 27. Bxd4 $18) 26. Rxe1 $18) (24... Nxe5 $6 25. Qe2 Nxd3 26. Nxd3 $16) 25. Bxf5 {[%emt 0:00:53] [#] aiming for Bd3.} Ne7 {[%emt 0:01:17]} 26. Qd3 {[%emt 0:02:21]} Nxf5 {[%emt 0:00:06]} 27. Bf2 {[%emt 0:00:20]} Bf8 {[%emt 0:01:40]} 28. Qd2 {[%emt 0:01:29]} h5 {[%emt 0:05:23]} 29. Rxc8 {[%emt 0:01:22]} Rxc8 {[%emt 0:00:05]} 30. Rc1 $2 {[%emt 0:00:09] [#]} (30. Nd3 $11 {and White has nothing to worry.}) 30... Rxc1 $19 {[%emt 0:01:50]} 31. Qxc1 {[%emt 0:00:08]} Qb5 $2 {[%emt 0:00:13]} (31... Nxd4 $19 {and ...Ne2+ should not be overlooked} 32. Qd1 Bc5) 32. Qc2 {[%emt 0:00:57]} Bh6 {[%emt 0:01:50]} 33. Nd3 {[%emt 0:00:52]} Be3 {[%emt 0:00:45]} ({Black should try} 33... Qa5 $1 $15) 34. Bxe3 $11 {[%emt 0:00:15] The position is equal.} Nxe3 {[%emt 0:00:04][%mdl 4096] Endgame KQN-KQN} 35. Qc3 {[%emt 0:01:13]} Kg7 {[%emt 0:02:01]} 36. g3 {[%emt 0:00:48]} Nf5 {[%emt 0:01:55]} 37. Kf2 {[%emt 0:00:11]} Ne7 {[%emt 0:00:04]} 38. Nb4 {[%emt 0:00:36]} Nc6 {[%emt 0:00:59]} 39. Nxc6 {[%emt 0:00:21]} bxc6 {[%emt 0:00:03]} 40. h4 {[%emt 0:00:57]} Qa6 {[%emt 0:01:22]} 41. Ke1 {[%emt 0:30:50]} Qb5 {[%emt 0:31:14]} 42. g4 {[%emt 0:00:00]} Qb6 {[%emt 0:00:00]} 43. Kf2 {[%emt 0:00:00]} Qd8 {[%emt 0:00:00]} 44. g5 {[%emt 0:00:00] Weighted Error Value: White=0.15 (very precise) /Black=0.17 (very precise)   Missed win:     	---       	Black=1      Mistake:       	White=1     	Black=1      Inaccurate:     	White=4     	Black=3      OK:         	White=11    	Black=18     Best:        	White=2     	Black=1} 1/2-1/2

[Event "EICC 2025"]
[Site "Eforie-Nord"]
[Date "2025.03.15"]
[Round "1.5"]
[White "Iturrizaga Bonelli, Eduardo"]
[Black "Hryzlova, Sofiia"]
[Result "1-0"]
[Annotator "TA"]
[ECO "A21"]
[WhiteElo "2582"]
[BlackElo "2258"]
[PlyCount "99"]
[EventDate "2025.03.14"]
[EventType "swiss"]
[EventCountry "ROU"]
[SourceTitle "playchess.com"]
[Source "ChessBase"]
[SourceQuality "1"]
[TimeControl "40/5400+30:1800+30"]

{[%evp 12,98,22,2,29,20,31,9,0,-18,-18,-12,27,-12,-27,-33,-17,-23,-21,-32,-35,-41,-38,-36,0,-21,15,8,12,8,84,0,0,0,0,-27,-14,-27,2,-111,-93,-343,-369,-333,-182,-341,-346,-343,-231,-372,-383,-386,-394,-385,-364,-519,-502,-440,-339,-323,-334,-347,-248,-235,-175,-167,-83,-368,-400,-652,-652,-698,-677,-680,-639,-858,-822,-798,-598,-612,-626,-606,29995,29996,29997,29998,29998,29999,29999]} 1. c4 {[%emt 0:00:03]} e5 {[%emt 0:00:08]} 2. d3 {[%emt 0:03:23]} d6 {[%emt 0:05:41]} 3. Nc3 {[%emt 0:00:23]} f5 {[%emt 0:00:35]} 4. g3 {[%emt 0:00:36]} Nf6 {[%emt 0:00:30]} 5. Bg2 {[%emt 0:00:04]} Be7 {[%emt 0:00:25]} 6. e3 {[%emt 0:04:33]} O-O {[%emt 0:02:07]} 7. Nge2 {[%emt 0:00:05]} a5 {[%emt 0:03:35] A21: English Opening: 1...e5 2 Nc3.} 8. O-O {[%emt 0:00:21]} c6 {[%emt 0:00:51]} 9. h3 $5 {[%emt 0:06:52][%mdl 4] Leaves trodden paths.} Be6 {[%emt 0:06:02] The position is equal.} 10. f4 {[%emt 0:00:50]} Na6 {[%emt 0:07:20]} 11. b3 {[%emt 0:07:20]} Rb8 $146 {[%emt 0:04:08]} (11... Kh8 12. Kh2 Qd7 13. Bb2 Rac8 14. Qd2 b5 15. Rad1 b4 16. Na4 Qc7 17. e4 Nd7 {1-0 Gurevich,M (2667)-Serper,G (2574) Cap d'Agde KO rapid 2000 (2.4)}) 12. Kh2 {[%emt 0:04:25]} Qe8 {[%emt 0:06:58]} 13. Bb2 {[%emt 0:17:51]} Qh5 {[%emt 0:10:08]} 14. Qd2 {[%emt 0:01:36]} Nc5 {[%emt 0:02:30]} 15. Rad1 {[%emt 0:33:42]} e4 {[%emt 0:09:39]} 16. dxe4 {[%emt 0:01:00]} fxe4 {[%emt 0:01:14]} 17. Ba3 {[%emt 0:01:12]} b5 {[%emt 0:04:27]} 18. Nd4 {[%emt 0:11:53]} b4 {[%emt 0:12:50]} 19. Nxc6 {[%emt 0:00:04]} Qe8 {[%emt 0:00:12]} 20. Nxb8 {[%emt 0:00:29]} bxa3 {[%emt 0:01:24] [#]} (20... Qxb8 $11 {remains equal.} 21. g4 bxa3) 21. Nb5 $1 {[%emt 0:01:17]} Qxb8 $11 {[%emt 0:04:36]} 22. Qxa5 {[%emt 0:00:06]} d5 $36 {[%emt 0:03:15][%mdl 2048] Black is pushing.} 23. Nd4 {[%emt 0:00:53]} dxc4 {[%emt 0:02:27]} 24. b4 {[%emt 0:01:02]} Nb7 {[%emt 0:03:38]} 25. Qe5 {[%emt 0:00:04] [#]} (25. Qb5 $1 $11 Bd7 26. Qxc4+ Kh8 27. Qb3) 25... Bd7 $1 $17 {[%emt 0:00:17]} (25... Qxe5 26. fxe5 Nd5 27. Rxf8+ (27. Nxe6 Rxf1 28. Rxf1 Nc3 $18) 27... Bxf8 28. Nxe6 $18) 26. b5 $2 {[%emt 0:01:24]} (26. Qxe7 $2 Re8 $19) (26. Nc2 $17 Re8 27. Nxa3) 26... Bd6 $19 {[%emt 0:01:37] This pair of bishops is nice.} 27. Qg5 {[%emt 0:00:01][%cal Og2e4]} Qc8 {[%emt 0:03:10]} (27... h6 $142 28. Qg6 Be8) 28. Qh4 {[%emt 0:01:15]} (28. Bxe4 Nxe4 29. Qd5+ Kh8 30. Qxe4 Bxh3 31. Rh1) 28... Be7 {[%emt 0:00:28]} 29. Kh1 {[%emt 0:00:53]} Qe8 {[%emt 0:00:16][%cal Of6h5]} 30. Nc6 {[%emt 0:00:49]} (30. Qg5) 30... Bxc6 {[%emt 0:00:19]} 31. bxc6 {[%emt 0:00:03]} Qxc6 {[%emt 0:00:07]} 32. g4 {[%emt 0:00:06]} Nc5 {[%emt 0:00:26]} 33. g5 {[%emt 0:01:22]} (33. Rd4 {was necessary.}) 33... Nd5 {[%emt 0:00:32]} 34. Qg3 {[%emt 0:00:12]} Nc3 {[%emt 0:01:49]} 35. Rd2 {[%emt 0:00:02]} Nd3 {[%emt 0:01:07]} 36. Rc2 {[%emt 0:00:03]} Nb5 {[%emt 0:00:20]} 37. f5 {[%emt 0:00:04]} Qd5 {[%emt 0:02:28]} 38. f6 {[%emt 0:00:12] And now Qg4 would win.} Bc5 {[%emt 0:00:13]} (38... Bd8 $19 {Hoping for ...Bc7.} 39. h4 Nd6) 39. Qg4 $2 {[%emt 0:01:44][%mdl 8192]} (39. g6 $17 gxf6 40. Qh4 hxg6 (40... Bxe3 41. Qxh7#) 41. Bxe4) 39... Nd6 {[%emt 0:00:18]} (39... Bxe3 $2 40. Bxe4 Qe5 (40... Qxg5 $2 {too greedy.} 41. Qe6+ Kh8 42. Qe7 $18) 41. Re2 $18) 40. g6 {[%emt 0:01:08]} (40. h4 $142) 40... Rxf6 {[%emt 0:01:24]} ({Stronger than} 40... Bxe3 41. gxh7+ Kf7 42. Qxg7+ Ke8 43. Qe7#) 41. gxh7+ {[%emt 0:04:29]} Kxh7 {[%emt 0:01:53]} 42. Rxf6 {[%emt 0:00:05]} gxf6 {[%emt 0:00:10]} 43. Qd7+ {[%emt 0:00:04]} Kh6 {[%emt 0:00:46]} 44. Qd8 {[%emt 0:01:15]} Bxe3 {[%emt 0:16:21]} 45. Qxf6+ {[%emt 0:01:40]} Kh5 {[%emt 0:03:19]} 46. Bf1 {[%emt 0:00:50][%cal Rf1e2]} Nf4 {[%emt 0:05:19][%mdl 8192] [#]} (46... Bg5 $19 47. Qh8+ Kg6) 47. Rg2 $1 {[%emt 0:00:32][%cal Rf6h8][%mdl 512] White mates.} Bd4 {[%emt 0:06:02]} (47... Qg8 48. Rxg8) 48. Be2+ {[%emt 0:00:18]} Nxe2 {[%emt 0:00:10]} 49. Qg6+ {[%emt 0:00:02]} Kh4 {[%emt 0:00:10]} 50. Qg4# {[%emt 0:00:04] Never resign too early!   Weighted Error Value: White=0.53/Black=0.45  Loses game:     	White=2     	---        Mistake:       	White=6     	Black=3      Inaccurate:     	White=1     	Black=4      OK:         	White=14    	Black=13     Best:        	White=1     	Black=4      Strong:       	---       	Black=1} 1-0

[Event "EICC 2025"]
[Site "Eforie-Nord"]
[Date "2025.03.15"]
[Round "1.5"]
[White "Cnejev, Vladimir-Alexandru"]
[Black "Dardha, Daniel"]
[Result "0-1"]
[Annotator "TA"]
[ECO "C70"]
[WhiteElo "2343"]
[BlackElo "2665"]
[PlyCount "80"]
[EventDate "2025.03.14"]
[EventType "swiss"]
[EventCountry "ROU"]
[SourceTitle "playchess.com"]
[Source "ChessBase"]
[SourceQuality "1"]
[TimeControl "40/5400+30:1800+30"]

{[%evp 9,80,17,31,0,0,0,0,0,0,0,0,-59,-52,-49,-41,-68,-30,-32,-34,-145,14,-101,-109,-102,-93,-108,-97,-100,-85,-94,-32,-30,-25,-119,-50,-96,-61,-57,-60,-65,-21,-98,-93,-145,-117,-133,-127,-131,-134,-170,-157,-308,-288,-312,-287,-543,-389,-369,-359,-496,-480,-627,-304,-324,-291,-447,-432,-418,-391,-1562,-1543,-1957,-1262]} 1. e4 {[%emt 0:00:06]} e5 {[%emt 0:00:13]} 2. Nf3 {[%emt 0:00:09]} Nc6 {[%emt 0:00:10]} 3. Bb5 {[%emt 0:00:12]} a6 {[%emt 0:00:17]} 4. Ba4 {[%emt 0:00:07]} Nge7 {[%emt 0:00:11]} 5. Nc3 {[%emt 0:01:39]} d6 {[%emt 0:02:59]} 6. d4 {[%emt 0:16:40] C70: Ruy Lopez: 3...a6 4 Ba4, Norwegian and Delayed Schliemann.} b5 {[%emt 0:06:36]} 7. Bb3 {[%emt 0:00:09] Black must now prevent Ng5.} Nxd4 {[%emt 0:00:35]} 8. Nxd4 {[%emt 0:00:09] The position is equal.} exd4 {[%emt 0:00:03]} 9. Qh5 {[%emt 0:18:42]} Ng6 {[%emt 0:02:11]} (9... dxc3 $6 10. Qxf7+ Kd7 11. Be6+ (11. bxc3 $2 Qe8 $17) 11... Kc6 12. Bd5+ (12. bxc3 $2 Bxe6 13. Qxe6 Qd7 $19) 12... Kb6 13. Bxa8 $16) 10. Nd5 {[%emt 0:14:59] White sacrificed a pawn} (10. Qd5 $11 Be6 11. Qc6+ Bd7 12. Qd5) 10... Be7 {[%emt 0:06:22]} 11. a4 {[%emt 0:17:00]} c6 {[%emt 0:13:06]} 12. Nf4 $146 {[%emt 0:05:41]} (12. Nxe7 Qxe7 13. O-O Rb8 14. f4 h6 15. axb5 Rxb5 16. Qd1 O-O 17. f5 Ne5 18. Qxd4 {½-½ Garifullina,L (2375)-Ovod,E (2323) RUS-ch (Women) 72nd 2022 (6)}) 12... bxa4 {[%emt 0:07:26]} 13. Rxa4 {[%emt 0:02:09]} Ne5 {[%emt 0:02:40]} 14. Rxd4 {[%emt 0:18:05]} ({White should play} 14. h3 $15) 14... O-O $2 {[%emt 0:01:32]} (14... Qa5+ $1 $17 15. Bd2 Qc5) 15. Qe2 {[%emt 0:00:54]} (15. Qd1 $11 {keeps the balance.}) 15... a5 $1 $17 {[%emt 0:08:04]} 16. O-O {[%emt 0:01:13]} Ba6 {[%emt 0:00:18]} 17. c4 {[%emt 0:00:35]} Qb6 {[%emt 0:01:01][%csl LRb3,LRd4]} 18. Qd1 {[%emt 0:00:18]} Rfe8 {[%emt 0:03:11]} 19. Ba2 {[%emt 0:00:30]} Bf8 {[%emt 0:02:43] Black is more active.} ({Black should try} 19... a4 $17) 20. b3 $1 $15 {[%emt 0:00:15]} Rab8 {[%emt 0:04:51][%cal Oa5a4]} 21. Be3 {[%emt 0:00:26] [#]} (21. Re1 $11) 21... Qb7 {[%emt 0:01:02]} (21... a4 $1 $17 {[%cal Ra4b3]} 22. bxa4 c5) 22. h3 {[%emt 0:00:58]} (22. Qc2 $15 {should be considered.}) 22... Nd7 {[%emt 0:01:53]} 23. Qc2 {[%emt 0:00:33][%csl Ob3] Black attacks a weakness} Nc5 {[%emt 0:05:05][%cal Rc5b3]} 24. Rb1 {[%emt 0:00:27]} g6 {[%emt 0:01:36]} 25. f3 {[%emt 0:00:32] [#]} (25. Ne2 $11) 25... f5 $1 $17 {[%emt 0:01:31] White is now going downhill.} 26. Rdd1 {[%emt 0:00:30]} (26. Rbd1 $142) 26... fxe4 {[%emt 0:00:44]} 27. fxe4 {[%emt 0:00:30]} Qe7 {[%emt 0:03:36]} 28. Bxc5 {[%emt 0:00:07]} dxc5 {[%emt 0:00:04]} 29. Re1 {[%emt 0:00:11]} Bg7 {[%emt 0:01:02]} 30. Re2 $2 {[%emt 0:01:08] White is weak on the dark squares} (30. g3 $17) 30... Rf8 $19 {[%emt 0:02:01]} 31. Nd3 {[%emt 0:00:20]} Bd4+ {[%emt 0:00:57]} 32. Kh1 $2 {[%emt 0:00:06]} (32. Kh2 {was necessary.}) 32... Rf7 {[%emt 0:00:55]} 33. e5 {[%emt 0:01:06]} Rbf8 {[%emt 0:00:06]} 34. Ree1 {[%emt 0:00:33] Against Rf1+} Bc8 {[%emt 0:02:30] and ...Qh4 should not be overlooked A strong pair of Bishops.} 35. Qe2 {[%emt 0:00:26]} Qh4 {[%emt 0:02:40]} (35... Bxh3 $142 {[%cal Oe7h4] ( -> ...Qh4!)} 36. gxh3 Rf3) 36. e6 {[%emt 0:00:24]} Re7 {[%emt 0:00:06]} 37. Rf1 {[%emt 0:00:37]} (37. Qg4 $142 Qxg4 38. hxg4) 37... Rxf1+ {[%emt 0:02:56]} (37... Bxe6 38. Rxf8+ Kxf8 39. Rf1+ Ke8 40. Qf3 $19) 38. Rxf1 {[%emt 0:00:30]} Rxe6 {[%emt 0:00:13]} ({Not} 38... Bxe6 39. Qe1 Qxe1 40. Rxe1 $19) 39. Qd2 {[%emt 0:00:15]} (39. Qg4 Qxg4 40. hxg4) 39... Re3 {[%emt 0:00:46][%cal Oe3h3] ( -> ...Rxh3+!)} 40. Nf4 {[%emt 0:00:47] [#]} Bxh3 $1 {[%emt 0:01:12] Weighted Error Value: White=0.75/Black=0.29 (precise)   Mistake:       	White=11    	Black=4      Inaccurate:     	White=3     	Black=3      OK:         	White=9     	Black=9      Best:        	White=2     	Black=8      Strong:       	White=1     	Black=2} 0-1